bitfinex/quotes_SOLUSD_20260114
["timestamp","ask_amount","ask_price","bid_price","bid_amount"]
[1768385472685,3.96580599,145.62,145.6,0.71024858]
[1768385474709,3.96580599,145.62,145.59,7.57853648]
[1768385475111,7.53464013,145.63,145.59,7.57853648]
[1768385475312,3.96580599,145.62,145.59,7.57853648]
[1768385475494,4.63368447,145.62,145.59,7.57853648]
[1768385476314,3.96580599,145.62,145.6,0.71024858]
[1768385481118,4.64515883,145.62,145.59,0.69398285]
[1768385482918,4.64515883,145.62,145.59,7.56229934]
[1768385483415,3.2148942,145.62,145.59,7.56229934]
[1768385483718,2.53554136,145.62,145.6,0.69398285]
[1768385484918,7.54611449,145.63,145.6,7.56207353]
[1768385485120,10.08165585,145.63,145.6,7.56207353]
[1768385485313,7.54611449,145.63,145.6,7.56207353]
[1768385485515,10.08165585,145.63,145.6,7.56207353]
[1768385486623,3.2148942,145.63,145.6,7.56207353]
[1768385486924,0.67935284,145.63,145.6,7.56207353]
[1768385487826,3.2148942,145.64,145.61,0.69398285]
[1768385488127,0.1,145.67,145.61,0.69398285]
[1768385488416,3.2148942,145.64,145.61,0.69398285]
[1768385488607,3.2148942,145.64,145.61,7.56126967]
[1768385489418,0.67935284,145.64,145.61,7.56126967]
[1768385490921,0.77935284,145.67,145.62,0.69398285]
[1768385491106,2.53554136,145.66,145.62,0.69398285]
[1768385491306,3.2148942,145.66,145.62,0.69398285]
[1768385492802,3.2148942,145.66,145.63,6.86671702]
[1768385493003,3.2148942,145.66,145.63,7.56069987]
[1768385493424,10.08024639,145.66,145.63,7.56069987]
[1768385493734,2.53554136,145.65,145.63,7.56069987]
[1768385497024,0.67935284,145.66,145.63,7.56069987]
[1768385497231,3.2148942,145.66,145.63,7.56069987]
[1768385497612,3.3308197,145.67,145.64,0.6876776]
[1768385500330,2.53554136,145.66,145.64,0.6876776]
[1768385500534,2.53554136,145.66,145.63,7.55439462]
[1768385500914,0.69527834,145.65,145.63,6.86671702]
[1768385501119,3.2308197,145.65,145.63,6.86671702]
[1768385501436,2.53554136,145.64,145.63,6.86671702]
[1768385501737,3.2308197,145.65,145.62,7.55464546]
[1768385504027,0.69527834,145.65,145.61,24.72448825]
[1768385504313,0.69527834,145.64,145.61,24.72448825]
[1768385505742,2.53554136,145.65,145.63,6.86671702]
[1768385506044,3.2308197,145.65,145.63,6.86671702]
[1768385509027,2.53554136,145.65,145.63,6.86671702]
[1768385509334,0.69527834,145.66,145.63,7.55439462]
[1768385509539,2.53554136,145.65,145.63,7.55439462]
[1768385509722,3.2308197,145.66,145.63,7.55439462]
[1768385510340,0.69527834,145.65,145.63,6.86671702]
[1768385510640,2.53554136,145.66,145.63,7.55439462]
[1768385510835,2.53554136,145.65,145.63,7.55439462]
[1768385512139,3.2308197,145.66,145.63,7.55439462]
[1768385512325,2.53554136,145.66,145.63,7.55439462]
[1768385514443,3.2308197,145.66,145.63,7.55439462]
[1768385516647,0.69527834,145.66,145.63,7.55439462]
[1768385516940,3.2308197,145.66,145.63,7.55439462]
[1768385517142,0.69527834,145.65,145.62,17.85506223]
[1768385518534,3.2308197,145.66,145.63,0.6876776]
[1768385519146,0.69527834,145.65,145.62,24.7222508]
[1768385519846,2.53554136,145.66,145.63,0.6876776]
[1768385520441,2.53554136,145.66,145.62,24.0345732]
[1768385520763,0.69527834,145.65,145.62,24.7222508]
[1768385521826,3.2308197,145.66,145.63,0.6876776]
[1768385522220,0.69527834,145.66,145.63,0.6876776]
[1768385522528,0.79527834,145.67,145.63,0.6876776]
[1768385522826,2.53554136,145.66,145.63,0.6876776]
[1768385523147,2.53554136,145.66,145.64,6.86624553]
[1768385523442,0.69527834,145.64,145.61,7.55516659]
[1768385523642,2.53554136,145.63,145.62,6.86718857]
[1768385523844,2.53554136,145.63,145.61,0.6876776]
[1768385525553,2.53554136,145.63,145.62,6.86718857]
[1768385526246,3.20081971,145.64,145.62,6.86718857]
[1768385528658,0.66527835,145.64,145.62,6.86718857]
[1768385528845,3.20081971,145.64,145.62,6.86718857]
[1768385529461,2.53554136,145.65,145.62,6.86718857]
[1768385531059,6.96492558,145.67,145.62,6.86718857]
[1768385531060,2.53554136,145.64,145.62,6.86718857]
[1768385531357,0.65619108,145.65,145.62,6.86718857]
[1768385531538,3.19173244,145.65,145.62,6.86718857]
[1768385531859,0.63586099,145.64,145.62,6.86718857]
[1768385532343,2.53554136,145.65,145.62,0.71672038]
[1768385532858,2.53554136,145.66,145.62,0.71672038]
[1768385533637,2.53554136,145.66,145.63,6.86671702]
[1768385534262,3.09815528,145.66,145.63,6.86671702]
[1768385534562,3.09815528,145.66,145.63,7.5834374]
[1768385535244,2.53554136,145.66,145.63,7.5834374]
[1768385536366,2.63454136,145.66,145.63,7.5834374]
[1768385541153,2.53554136,145.66,145.63,7.5834374]
[1768385541462,3.19815528,145.67,145.63,7.5834374]
[1768385542046,0.099,145.66,145.63,7.5834374]
[1768385548752,0.1,145.67,145.64,0.69779659]
[1768385548958,1e-08,145.67,145.64,0.69779659]
[1768385549364,4.52206358,145.68,145.65,0.69779659]
[1768385549869,0.56261392,145.68,145.65,0.69779659]
[1768385550070,4.52206358,145.68,145.65,0.69779659]
[1768385550548,4.52206358,145.68,145.66,6.86530275]
[1768385551666,4.52206358,145.68,145.65,7.5635707]
[1768385553069,0.56261392,145.68,145.65,7.5635707]
[1768385553268,4.52206358,145.68,145.65,7.5635707]
[1768385554159,3.95944966,145.68,145.66,0.69779659]
[1768385554668,4.62206358,145.69,145.66,7.50298715]
[1768385557058,4.05944966,145.69,145.65,0.67257555]
[1768385557259,4.15844966,145.69,145.65,0.67257555]
[1768385558179,4.15844966,145.69,145.66,7.5378783]
[1768385559955,0.1,145.69,145.67,0.67257555]
[1768385560160,4.15844966,145.69,145.65,0.67257555]
[1768385561380,4.15844966,145.69,145.66,7.5378783]
[1768385563563,3.95944966,145.68,145.66,7.5378783]
[1768385565164,0.199,145.69,145.66,7.5378783]
[1768385565365,3.95944966,145.68,145.66,7.5378783]
[1768385565556,0.199,145.69,145.66,7.5378783]
[1768385565757,4.15844966,145.69,145.66,7.5378783]
[1768385566490,0.199,145.69,145.66,7.5378783]
[1768385566676,4.15844966,145.69,145.66,7.5378783]
[1768385567192,4.05944966,145.69,145.67,0.67257555]
[1768385567687,0.1,145.69,145.67,0.67257555]
[1768385567987,0.61737778,145.68,145.66,6.86530275]
[1768385568183,4.05944966,145.69,145.66,6.86530275]
[1768385568584,6.96312426,145.71,145.66,6.86530275]
[1768385568776,3.95944966,145.69,145.66,6.86530275]
[1768385568970,3.95944966,145.68,145.66,6.86530275]
[1768385569177,6.86350849,145.7,145.66,7.5378783]
[1768385569178,3.95944966,145.69,145.66,7.5378783]
[1768385571692,6.96335057,145.71,145.66,7.5378783]
[1768385571987,3.95944966,145.69,145.66,7.5378783]
[1768385572189,3.95944966,145.69,145.66,7.51176185]
[1768385572392,3.95944966,145.69,145.66,7.4778783]
[1768385572971,3.95944966,145.68,145.66,6.80530275]
[1768385573988,3.95944966,145.68,145.66,7.4778783]
[1768385576970,3.95944966,145.68,145.64,0.67257555]
[1768385576971,3.95944966,145.67,145.64,0.67257555]
[1768385577166,3.95944966,145.66,145.64,0.67257555]
[1768385577891,6.86341798,145.7,145.65,0.67257555]
[1768385578295,3.95944966,145.67,145.65,0.67257555]
[1768385578589,6.86341798,145.7,145.65,0.67257555]
[1768385578788,3.95944966,145.67,145.65,0.67257555]
[1768385578987,3.95944966,145.68,145.65,0.67257555]
[1768385580097,3.95944966,145.66,145.64,0.67257555]
[1768385580292,6.86438183,145.68,145.64,0.67257555]
[1768385580486,3.95944966,145.67,145.64,7.53879945]
[1768385581603,3.95944966,145.66,145.64,7.53879945]
[1768385582503,3.95944966,145.67,145.64,7.53879945]
[1768385583088,3.95944966,145.67,145.65,0.67257555]
[1768385584293,3.95944966,145.68,145.65,7.53826235]
[1768385585204,3.95944966,145.67,145.65,7.53826235]
[1768385585889,19.384067,145.69,145.65,7.53826235]
[1768385586090,3.95944966,145.67,145.65,7.53826235]
[1768385590194,6.86439318,145.68,145.65,7.53826235]
[1768385590396,10.82384284,145.68,145.65,7.53826235]
[1768385590698,10.82384284,145.68,145.63,7.54869172]
[1768385590888,3.95944966,145.67,145.63,6.86671702]
[1768385591991,3.95944966,145.64,145.6,0.6819747]
[1768385592199,6.86491965,145.67,145.53,108.75944966]
[1768385592200,3.95944966,145.61,145.54,0.6819747]
[1768385592407,3.95944966,145.6,145.56,0.6819747]
[1768385593203,3.95944966,145.6,145.57,6.86954729]
[1768385594303,3.95944966,145.59,145.57,6.86954729]
[1768385594502,3.95944966,145.59,145.56,0.6819747]
[1768385594503,6.86768767,145.61,145.56,0.6819747]
[1768385594828,3.95944966,145.59,145.56,7.55193259]
[1768385595312,3.95944966,145.57,145.55,0.6819747]
[1768385595714,3.95944966,145.57,145.54,7.5525975]
[1768385595890,3.95944966,145.57,145.55,6.87042366]
[1768385596092,3.95944966,145.58,145.55,7.55239836]
[1768385596295,3.95944966,145.58,145.56,0.6819747]
[1768385597804,3.95944966,145.58,145.55,6.87042366]
[1768385599408,3.95944966,145.58,145.56,0.71001139]
[1768385600118,3.95944966,145.59,145.56,0.71001139]
[1768385600416,6.86832782,145.6,145.56,0.71001139]
[1768385600723,3.95944966,145.58,145.56,0.71001139]
[1768385605110,10.82815168,145.59,145.56,0.71001139]
[1768385605316,9.40545421,145.59,145.56,0.71001139]
[1768385606303,9.40545421,145.59,145.56,7.5800047]
[1768385606503,9.40478374,145.61,145.57,0.71001139]
[1768385607414,9.40478374,145.61,145.58,0.71001139]
[1768385608203,9.40478374,145.61,145.57,6.86944957]
[1768385608512,9.40478374,145.61,145.58,0.71001139]
[1768385608712,6.86803155,145.61,145.58,0.71001139]
[1768385609326,2.53675219,145.6,145.58,0.71001139]
[1768385609720,6.86718857,145.62,145.58,0.71001139]
[1768385610023,2.53675219,145.61,145.58,0.71001139]
[1768385611619,2.53675219,145.63,145.59,0.71001139]
[1768385611819,2.53675219,145.63,145.59,7.57818179]
[1768385612724,19.3865493,145.64,145.59,7.57818179]
[1768385613025,21.92330149,145.64,145.59,7.57818179]
[1768385613203,21.92330149,145.64,145.6,7.5780023]
[1768385614526,24.02526084,145.68,145.62,0.71001139]
[1768385614910,2.53675219,145.67,145.62,0.71001139]
[1768385615227,2.53675219,145.66,145.62,0.71001139]
[1768385615609,2.53675219,145.66,145.63,0.7033012]
[1768385616222,6.86505097,145.67,145.63,0.7033012]
[1768385616519,2.53675219,145.66,145.63,0.7033012]
[1768385616830,2.53675219,145.67,145.63,0.7033012]
[1768385618128,2.53675219,145.67,145.63,7.56991496]
[1768385618925,9.40167106,145.67,145.62,7.57048977]
[1768385619427,2.53675219,145.67,145.63,0.7033012]
[1768385620218,9.40165405,145.67,145.63,0.7033012]
[1768385621510,2.53675219,145.66,145.62,7.57048977]
[1768385621714,6.86490186,145.67,145.62,7.57048977]
[1768385621927,2.53675219,145.66,145.62,7.57048977]
[1768385622619,9.40165405,145.67,145.62,7.57048977]
[1768385623130,2.53675219,145.66,145.62,7.57048977]
[1768385626514,9.40199912,145.67,145.62,7.57048977]
[1768385627227,9.40199912,145.67,145.63,0.7033012]
[1768385628415,9.40199912,145.67,145.62,7.57048977]
[1768385628614,2.53675219,145.66,145.62,7.57048977]
[1768385629023,6.86537176,145.66,145.62,7.57048977]
[1768385631534,2.53675219,145.67,145.62,7.57048977]
[1768385633419,6.86530275,145.66,145.62,7.57048977]
[1768385634641,6.86530275,145.66,145.63,0.7033012]
[1768385635638,6.86530275,145.66,145.62,7.5702267]
[1768385635822,6.86530275,145.66,145.63,0.7033012]
[1768385637625,9.40205494,145.66,145.63,0.7033012]
[1768385640542,6.86530275,145.66,145.63,0.7033012]
[1768385640729,2.53675219,145.64,145.62,6.8669255]
[1768385640930,6.86530275,145.66,145.6,6.86802904]
[1768385640931,2.53675219,145.63,145.6,6.86802904]
[1768385641142,6.86530275,145.66,145.6,7.57133024]
[1768385641349,2.53675219,145.63,145.6,7.57133024]
[1768385641733,2.53675219,145.62,145.6,7.57133024]
[1768385642039,6.86662374,145.64,145.6,6.86802904]
[1768385642447,6.86662374,145.64,145.6,7.57133024]
[1768385642659,2.53675219,145.63,145.6,7.57133024]
[1768385642846,6.86662374,145.64,145.6,7.57133024]
[1768385643162,2.53675219,145.63,145.6,0.7033012]
[1768385644123,2.53675219,145.61,145.57,7.57284849]
[1768385644336,6.86682128,145.63,145.57,7.57284849]
[1768385644551,2.53675219,145.61,145.57,7.57284849]
[1768385644890,2.53675219,145.6,145.57,6.86954729]
[1768385645156,2.50675219,145.6,145.58,0.7033012]
[1768385645951,2.50675219,145.6,145.58,7.57198717]
[1768385646256,6.86682128,145.63,145.58,7.57198717]
[1768385646257,2.53675219,145.61,145.58,7.57198717]
[1768385646853,6.86682128,145.63,145.58,7.57198717]
[1768385647060,2.53675219,145.62,145.59,7.57214784]
[1768385648057,9.40397026,145.62,145.59,0.70360076]
[1768385648858,9.40397026,145.62,145.58,0.70360076]
[1768385650161,9.40397026,145.62,145.58,7.57246187]
[1768385652761,9.40397026,145.62,145.59,0.70360076]
[1768385653549,21.92351987,145.63,145.6,0.70360076]
[1768385654165,2.53675219,145.62,145.6,0.70360076]
[1768385654544,21.92351987,145.63,145.6,0.70360076]
[1768385655554,19.38676768,145.63,145.6,0.70360076]
[1768385660260,2.53675219,145.63,145.61,0.6539572]
[1768385661267,6.86634064,145.64,145.61,0.6539572]
[1768385661450,9.40309283,145.64,145.61,0.6539572]
[1768385662170,6.86634064,145.64,145.61,0.6539572]
[1768385662361,9.40309283,145.64,145.61,0.6539572]
[1768385662758,9.40309283,145.64,145.6,7.52190831]
[1768385663360,9.40309283,145.64,145.61,0.6539572]
[1768385663569,2.53675219,145.63,145.61,0.6539572]
[1768385665373,3.96136896,145.63,145.61,0.6539572]
[1768385667170,10.82820017,145.63,145.61,0.6539572]
[1768385670273,3.96136896,145.64,145.61,0.6539572]
[1768385674462,6.86671702,145.63,145.61,0.6539572]
[1768385677794,3.96136896,145.64,145.62,0.67717724]
[1768385679791,10.8279573,145.64,145.62,0.67717724]
[1768385680589,6.86658834,145.64,145.62,0.67717724]
[1768385687109,6.86658834,145.64,145.6,0.67717724]
[1768385688702,6.86658834,145.64,145.6,7.5451597]
[1768385689113,6.86658834,145.64,145.61,0.67717724]
[1768385692314,6.86658834,145.64,145.6,0.67717724]
[1768385695004,6.86577411,145.65,145.61,0.67717724]
[1768385695213,4.62622403,145.64,145.61,0.67717724]
[1768385695396,6.86577411,145.65,145.61,0.67717724]
[1768385695597,4.62659156,145.64,145.61,0.67717724]
[1768385695801,6.86577411,145.65,145.61,0.67717724]
[1768385696097,4.62659156,145.64,145.61,0.67717724]
[1768385696287,6.86577411,145.65,145.61,0.67717724]
[1768385696587,11.4935116,145.64,145.61,0.67717724]
[1768385696790,6.86649503,145.64,145.61,0.67717724]
[1768385700015,6.86577411,145.65,145.61,0.67717724]
[1768385700229,4.6285356,145.64,145.61,0.67717724]
[1768385700404,10.82714307,145.65,145.61,0.67717724]
[1768385700598,4.62903916,145.64,145.61,0.67717724]
[1768385700800,10.82714307,145.65,145.61,0.67717724]
[1768385701111,4.62903775,145.64,145.61,0.67717724]
[1768385701424,10.82714307,145.65,145.61,0.67717724]
[1768385701604,11.49626685,145.64,145.61,0.67717724]
[1768385701803,6.86658845,145.64,145.61,0.67717724]
[1768385703224,4.63148203,145.63,145.61,0.67717724]
[1768385703427,6.86658845,145.64,145.61,0.67717724]
[1768385703718,4.631514,145.63,145.61,0.67717724]
[1768385704027,6.86658845,145.64,145.61,0.67717724]
[1768385704201,4.631514,145.63,145.61,0.67717724]
[1768385704399,6.86658845,145.64,145.61,0.67717724]
[1768385704615,4.63312051,145.63,145.61,0.67717724]
[1768385704917,6.86658845,145.64,145.61,0.67717724]
[1768385705109,4.63312051,145.63,145.61,0.67717724]
[1768385705419,6.86658845,145.64,145.61,0.67717724]
[1768385705600,4.63350971,145.63,145.61,0.67717724]
[1768385705802,6.86658845,145.64,145.61,0.67717724]
[1768385706304,6.86658845,145.64,145.6,7.52741303]
[1768385707108,6.86577411,145.65,145.6,7.52741303]
[1768385707301,10.82714307,145.65,145.61,0.65943386]
[1768385708324,10.8278283,145.64,145.61,0.65943386]
[1768385709523,10.79782829,145.64,145.61,0.65943386]
[1768385709728,10.79782829,145.64,145.6,0.65943386]
[1768385710629,10.79782829,145.64,145.59,0.65943386]
[1768385712621,10.79782829,145.64,145.61,0.65943386]
[1768385713533,10.8278283,145.64,145.61,0.65943386]
[1768385714427,3.96136896,145.62,145.58,0.65943386]
[1768385714726,3.96136896,145.61,145.58,0.65943386]
[1768385715711,3.96136896,145.6,145.58,0.65943386]
[1768385716039,3.93136895,145.6,145.59,0.65943386]
[1768385716430,3.90136892,145.6,145.59,0.65943386]
[1768385716937,3.90136892,145.6,145.57,6.86954729]
[1768385716938,3.90136892,145.6,145.58,0.65943386]
[1768385718526,10.76953437,145.6,145.58,0.65943386]
[1768385718729,10.76953437,145.6,145.57,0.66225444]
[1768385718942,10.76953437,145.6,145.56,7.53212189]
[1768385719840,10.76953437,145.6,145.57,0.66225444]
[1768385720043,10.76953437,145.6,145.56,0.66225444]
[1768385721329,10.76953437,145.6,145.56,7.53197348]
[1768385721529,10.76953437,145.6,145.57,0.66225444]
[1768385723829,6.86816545,145.6,145.57,0.66225444]
[1768385724231,10.82953441,145.6,145.57,0.66225444]
[1768385724438,24.03516,145.62,145.57,0.66225444]
[1768385724641,3.96136896,145.6,145.57,0.66225444]
[1768385724840,3.96136896,145.61,145.57,0.66225444]
[1768385725426,2.5363139,145.6,145.57,0.66225444]
[1768385725628,9.4047892,145.6,145.57,0.66225444]
[1768385725939,6.8684753,145.6,145.56,0.66225444]
[1768385726143,9.4047892,145.6,145.56,0.66225444]
[1768385727050,2.5363139,145.59,145.56,0.66225444]
[1768385727642,6.86907542,145.58,145.56,0.66225444]
[1768385728649,2.5363139,145.57,145.54,0.66225444]
[1768385729233,24.04176397,145.58,145.54,0.66225444]
[1768385729432,26.57807787,145.58,145.54,0.66225444]
[1768385729734,9.40538932,145.58,145.55,0.66225444]
[1768385730459,2.5363139,145.57,145.55,0.66225444]
[1768385732554,9.40616786,145.57,145.55,0.66225444]
[1768385735546,6.86985396,145.57,145.55,0.66225444]
[1768385735951,2.5363139,145.57,145.55,0.66225444]
[1768385737462,9.40632103,145.57,145.53,7.5526136]
[1768385739260,26.58018927,145.57,145.51,0.68117946]
[1768385739442,2.5363139,145.56,145.52,0.68117946]
[1768385739753,36.58387537,145.57,145.52,0.68117946]
[1768385739754,39.12018927,145.57,145.52,0.68117946]
[1768385740056,2.5363139,145.56,145.52,0.68117946]
[1768385741051,2.5363139,145.55,145.52,0.68117946]
[1768385742762,9.40689,145.55,145.52,0.68117946]
[1768385743150,6.8705761,145.55,145.52,0.68117946]
[1768385743864,9.40689,145.55,145.52,0.68117946]
[1768385744246,6.8705761,145.55,145.53,0.68117946]
[1768385746474,6.87001923,145.56,145.53,0.68117946]
[1768385746670,9.40633313,145.56,145.53,0.68117946]
[1768385749975,24.04506732,145.56,145.51,0.68117946]
[1768385750266,26.58138122,145.56,145.51,0.68117946]
[1768385750776,6.87001923,145.56,145.52,0.68117946]
[1768385751574,9.40633313,145.56,145.52,0.68117946]
[1768385754273,6.87001923,145.56,145.52,0.68117946]
[1768385754474,2.5363139,145.55,145.52,0.68117946]
[1768385755481,2.5363139,145.56,145.52,0.68117946]
[1768385756576,6.87049124,145.55,145.52,0.68117946]
[1768385758780,2.5363139,145.55,145.52,0.68117946]
[1768385759475,2.5363139,145.53,145.5,1e-08]
[1768385759680,2.5363139,145.51,145.48,0.88117946]
[1768385759876,2.5363139,145.49,145.48,0.88117946]
[1768385760181,15.0763139,145.53,145.48,0.88117946]
[1768385760383,2.5363139,145.5,145.48,0.88117946]
[1768385761280,9.40918313,145.5,145.48,0.88117946]
[1768385761478,2.5363139,145.49,145.48,0.88117946]
[1768385762180,9.40918313,145.5,145.48,0.88117946]
[1768385762563,2.5363139,145.49,145.48,0.88117946]
[1768385763279,2.5363139,145.49,145.48,0.2]
[1768385763477,9.40963852,145.49,145.47,0.88117946]
[1768385763679,2.5363139,145.48,145.47,0.88117946]
[1768385763993,2.5363139,145.48,145.45,7.07503696]
[1768385764184,2.5363139,145.49,145.45,7.07503696]
[1768385765573,2.5363139,145.48,145.45,7.07503696]
[1768385765776,2.5363139,145.49,145.46,0.70118931]
[1768385766769,3.21685534,145.49,145.46,0.70118931]
[1768385767890,3.21685534,145.49,145.46,7.57575328]
[1768385768666,7.55912332,145.51,145.47,0.70118931]
[1768385768887,2.5363139,145.5,145.48,0.70118931]
[1768385769073,2.5363139,145.49,145.47,0.70118931]
[1768385769985,2.5363139,145.48,145.45,0.2]
[1768385770276,2.5363139,145.46,145.45,0.2]
[1768385770467,2.5363139,145.46,145.44,0.90118931]
[1768385771285,2.5363139,145.45,145.43,0.70118931]
[1768385771518,2.5363139,145.45,145.42,0.2]
[1768385771519,2.5363139,145.45,145.42,7.77746632]
[1768385771970,6.87434682,145.47,145.44,0.70118931]
[1768385772174,2.5363139,145.46,145.44,0.70118931]
[1768385772579,9.50966072,145.47,145.44,0.70118931]
[1768385774478,0.6864156,145.49,145.45,0.70118931]
[1768385774794,3.2227295,145.49,145.45,0.70118931]
[1768385774996,0.6864156,145.49,145.45,0.70118931]
[1768385775169,12.54,145.5,145.45,0.70118931]
[1768385775170,0.099,145.48,145.45,0.70118931]
[1768385775377,3.2227295,145.49,145.45,0.70118931]
[1768385775588,10.09614995,145.49,145.45,7.57623915]
[1768385776598,2.5363139,145.48,145.45,0.70118931]
[1768385777478,9.41013048,145.48,145.45,7.57638451]
[1768385777679,9.50913048,145.48,145.44,7.57667631]
[1768385779303,9.50913048,145.48,145.45,0.71445573]
[1768385780594,6.97281658,145.48,145.45,0.71445573]
[1768385781098,6.97281658,145.48,145.42,0.91445573]
[1768385781099,2.5363139,145.46,145.42,0.91445573]
[1768385781276,9.41148763,145.46,145.42,7.79070856]
[1768385781482,6.87517373,145.46,145.43,0.71445573]
[1768385782184,6.84517374,145.46,145.43,0.71445573]
[1768385783580,2.6353139,145.44,145.41,0.2]
[1768385783880,2.60531391,145.44,145.41,0.2]
[1768385784887,9.4812942,145.44,145.41,0.2]
[1768385785399,6.87598029,145.44,145.41,0.91445573]
[1768385785998,2.5363139,145.42,145.4,0.2]
[1768385786178,36.60519921,145.44,145.38,0.2]
[1768385786375,1e-08,145.4,145.38,0.2]
[1768385786883,0.10253842,145.4,145.38,0.2]
[1768385787082,0.10253842,145.4,145.37,0.2]
[1768385787284,4.0768462,145.4,145.37,0.2]
[1768385788098,0.10253841,145.4,145.37,0.2]
[1768385788396,11.10833126,145.4,145.37,0.2]
[1768385788700,11.07833127,145.4,145.37,0.2]
[1768385789005,10.82191566,145.4,145.37,0.91445573]
[1768385789189,6.84760787,145.4,145.38,3.97430779]
[1768385789797,24.0682162,145.42,145.38,3.87430779]
[1768385789999,24.0682162,145.42,145.38,3.71789218]
[1768385790409,24.0682162,145.42,145.38,4.43234791]
[1768385790616,24.0682162,145.42,145.39,3.97430779]
[1768385791310,6.8766332,145.42,145.4,3.97430779]
[1768385791815,6.87616035,145.43,145.4,3.97430779]
[1768385792204,1.33994802,145.42,145.4,3.97430779]
[1768385792405,54.65277927,145.44,145.41,3.97430779]
[1768385792715,54.65277927,145.44,145.42,3.97430779]
[1768385794304,77.50180572,145.48,145.43,4.68876352]
[1768385794504,6.87464398,145.47,145.45,3.97430779]
[1768385794703,6.87464398,145.47,145.44,3.97430779]
[1768385795215,6.87464398,145.47,145.43,4.68876352]
[1768385795423,6.87464398,145.47,145.44,3.97430779]
[1768385795915,6.87464398,145.47,145.43,4.68876352]
[1768385796114,6.87464398,145.47,145.41,3.97430779]
[1768385796115,3.97430779,145.46,145.41,3.97430779]
[1768385796410,3.97430779,145.46,145.41,4.64835175]
[1768385796618,3.97430779,145.46,145.41,0.67404396]
[1768385796804,3.97430779,145.46,145.41,4.64835175]
[1768385797613,28.03462579,145.47,145.41,4.64835175]
[1768385798119,28.03462579,145.47,145.42,3.97430779]
[1768385798320,28.03462579,145.47,145.42,4.64835175]
[1768385798814,28.03462579,145.47,145.42,3.97430779]
[1768385799022,28.03462579,145.47,145.42,4.64835175]
[1768385799200,28.03462579,145.47,145.42,3.97430779]
[1768385800397,28.03462579,145.47,145.42,4.64835175]
[1768385801726,24.060318,145.47,145.43,3.97430779]
[1768385802998,24.060318,145.47,145.42,0.67404396]
[1768385803321,24.060318,145.47,145.43,3.97430779]
[1768385803910,24.060318,145.47,145.43,4.64835175]
[1768385805220,3.97430779,145.46,145.39,0.67404396]
[1768385805429,3.97430779,145.46,145.41,3.97430779]
[1768385805600,3.97430779,145.46,145.4,4.64835175]
[1768385806224,24.06325197,145.45,145.4,0.67404396]
[1768385806409,28.03755976,145.45,145.4,0.67404396]
[1768385806608,24.06325197,145.45,145.4,0.67404396]
[1768385807423,3.97430779,145.44,145.4,0.67404396]
[1768385808122,21.16234491,145.45,145.4,0.67404396]
[1768385809335,28.03755976,145.45,145.4,0.67404396]
[1768385809714,24.06325197,145.45,145.4,0.67404396]
[1768385810013,28.03755976,145.45,145.4,0.67404396]
[1768385810600,3.97430779,145.44,145.4,0.67404396]
[1768385812429,6.87616035,145.43,145.4,0.67404396]
[1768385813926,6.87616035,145.43,145.39,0.67404396]
[1768385814113,3.97430779,145.42,145.38,0.67404396]
[1768385814512,6.87710611,145.41,145.38,0.67404396]
[1768385815519,6.87710611,145.41,145.38,4.64835175]
[1768385815726,6.8766332,145.42,145.38,4.64835175]
[1768385817141,6.8766332,145.42,145.38,0.67404396]
[1768385817311,3.97430779,145.41,145.37,0.87404396]
[1768385819415,6.87757909,145.4,145.37,0.87404396]
[1768385823842,54.65416508,145.41,145.38,0.67404396]
[1768385824056,64.96644672,145.44,145.38,4.64835175]
[1768385824242,64.96644672,145.44,145.41,0.67404396]
[1768385825238,6.87616035,145.43,145.41,0.67404396]
[1768385827148,3.97430779,145.42,145.4,0.68706531]
[1768385827461,28.04086902,145.43,145.4,0.68706531]
[1768385827863,24.06656123,145.43,145.4,0.68706531]
[1768385829452,24.06656123,145.43,145.4,4.6613731]
[1768385830360,54.65275139,145.44,145.42,3.97430779]
[1768385830557,54.65275139,145.44,145.41,4.6613731]
[1768385830932,54.65275139,145.44,145.39,0.68706531]
[1768385830933,3.97430779,145.43,145.39,0.68706531]
[1768385831131,6.8766332,145.42,145.39,0.68706531]
[1768385832057,6.8766332,145.42,145.38,3.97430779]
[1768385832244,6.8766332,145.42,145.39,0.68706531]
[1768385832853,6.8766332,145.42,145.39,4.6613731]
[1768385834341,6.8766332,145.42,145.4,0.68706531]
[1768385834740,6.87616035,145.43,145.4,0.68706531]
[1768385835460,54.6527765,145.44,145.41,0.68706531]
[1768385836242,75.81630321,145.44,145.39,0.68706531]
[1768385836449,3.97430779,145.43,145.39,0.68706531]
[1768385836863,75.81630321,145.44,145.39,0.68706531]
[1768385837274,58.62708429,145.44,145.4,0.68706531]
[1768385837937,54.6527765,145.44,145.4,0.68706531]
[1768385838149,58.62708429,145.44,145.4,0.68706531]
[1768385838939,54.6527765,145.44,145.4,0.68706531]
[1768385841364,6.87539899,145.45,145.42,0.66587098]
[1768385841569,6.87539899,145.45,145.43,0.66587098]
[1768385842846,6.87474219,145.46,145.42,4.64017877]
[1768385843671,6.87474219,145.46,145.43,0.66587098]
[1768385843854,6.87444345,145.47,145.43,4.64017877]
[1768385844761,6.87444345,145.47,145.43,11.51619678]
[1768385846367,6.87444345,145.47,145.44,3.97430779]